[Event "LJ Slovak Open 2022"]
[Site "Liptovsky Jan"]
[Date "2022.06.25"]
[Round "4.48"]
[White "Hudak, Michal"]
[Black "Gay, Lukas"]
[Result "1-0"]
[ECO "D02"]
[WhiteElo "1169"]
[BlackElo "1480"]
[Annotator "NA RC"]
[PlyCount "61"]
[EventDate "2022.06.23"]
[EventType "swiss"]
[EventCountry "SVK"]
[SourceTitle "playchess.com"]
[Source "ChessBase"]
[SourceQuality "1"]
[TimeControl "3600+30"]

1. d4 {[%emt 0:01:00]} Nf6 {[%emt 0:00:24]} 2. Nf3 {[%emt 0:00:30]} g6 {[%emt 0:00:46]} 3. g3 {[%emt 0:01:00]} Bg7 {[%emt 0:00:21]} 4. Bg2 {[%emt 0:00:15]} O-O {[%emt 0:00:45]} 5. O-O {[%emt 0:00:33]} d5 {[%emt 0:01:03]} 6. Nc3 {[%emt 0:00:22]} Nbd7 {[%emt 0:00:25]} 7. Bf4 {[%emt 0:00:49]} e6 {[%emt 0:00:56]} 8. Re1 {[%emt 0:00:27]} c5 {[%emt 0:02:41]} 9. Bd6 {[%emt 0:02:43]} Re8 {[%emt 0:04:41]} 10. dxc5 {[%emt 0:00:53]} Qa5 {[%emt 0:00:54]} 11. a3 {[%emt 0:19:12]} Ne4 {[%emt 0:01:54]} 12. Nxe4 {[%emt 0:04:29]} dxe4 {[%emt 0:00:22]} 13. Nd4 {[%emt 0:03:19]} f5 {[%emt 0:02:24]} 14. c3 {[%emt 0:07:14]} Ne5 {[%emt 0:05:50]} 15. Qb3 {[%emt 0:03:31]} Nc6 {[%emt 0:00:59]} 16. Nb5 {[%emt 0:01:15]} Re7 {[%emt 0:05:51]} 17. Bxe7 {[%emt 0:01:50]} Nxe7 {[%emt 0:00:01]} 18. e3 {[%emt 0:01:51]} a6 {[%emt 0:00:21]} 19. Nd6 {[%emt 0:00:41]} Qxc5 {[%emt 0:01:12]} 20. Red1 {[%emt 0:02:48]} b5 {[%emt 0:00:56]} 21. Nxc8 {[%emt 0:00:59]} Qxc8 {[%emt 0:00:12]} 22. Qb4 {[%emt 0:00:13]} Nd5 {[%emt 0:00:25]} 23. Qb3 {[%emt 0:03:14]} Qc5 {[%emt 0:00:55]} 24. Bf1 {[%emt 0:01:06]} Bh6 {[%emt 0:00:35]} 25. Rd4 {[%emt 0:03:47]} Kf7 {[%emt 0:01:15]} 26. c4 {[%emt 0:01:25]} Nxe3 {[%emt 0:05:06]} 27. fxe3 {[%emt 0:01:20]} bxc4 {[%emt 0:00:09]} 28. Bxc4 {[%emt 0:00:25]} Re8 {[%emt 0:00:31]} 29. Rad1 {[%emt 0:04:16]} Rb8 {[%emt 0:03:23]} 30. Qc3 {[%emt 0:02:03]} Bg7 {[%emt 0:01:09]} 31. Bxe6+ {[%emt 0:00:08]} 1-0

[Event "LJ Slovak Open 2022"]
[Site "Liptovsky Jan"]
[Date "2022.06.25"]
[Round "4.49"]
[White "Szaszak, Matej"]
[Black "Janouskova, Adela"]
[Result "0-1"]
[ECO "B50"]
[WhiteElo "1235"]
[BlackElo "1498"]
[Annotator "NA RC"]
[PlyCount "98"]
[EventDate "2022.06.23"]
[EventType "swiss"]
[EventCountry "SVK"]
[SourceTitle "playchess.com"]
[Source "ChessBase"]
[SourceQuality "1"]
[TimeControl "3600+30"]

1. e4 {[%emt 0:00:06]} c5 {[%emt 0:00:17]} 2. Bc4 {[%emt 0:00:04]} Nc6 {[%emt 0:00:33]} 3. Nc3 {[%emt 0:00:06]} d6 {[%emt 0:00:31]} 4. d3 {[%emt 0:00:05]} e6 {[%emt 0:00:48]} 5. Nf3 {[%emt 0:00:19]} Nf6 {[%emt 0:01:38]} 6. O-O {[%emt 0:00:18]} Be7 {[%emt 0:00:09]} 7. Be3 {[%emt 0:00:11]} d5 {[%emt 0:00:43]} 8. exd5 {[%emt 0:00:09]} exd5 {[%emt 0:00:05]} 9. Bb3 {[%emt 0:00:34]} d4 {[%emt 0:00:22]} 10. Ne4 {[%emt 0:00:05]} dxe3 {[%emt 0:00:33]} 11. Nxf6+ {[%emt 0:00:11]} Bxf6 {[%emt 0:00:13]} 12. Re1 {[%emt 0:00:21]} O-O {[%emt 0:00:25]} 13. Rxe3 {[%emt 0:00:09]} Bg4 {[%emt 0:02:17]} 14. h3 {[%emt 0:00:26]} Bh5 {[%emt 0:00:30]} 15. c3 {[%emt 0:00:30]} Re8 {[%emt 0:02:35]} 16. Qd2 {[%emt 0:00:22]} Bxf3 {[%emt 0:00:30]} 17. Rxf3 {[%emt 0:00:16]} Ne5 {[%emt 0:00:41]} 18. Rg3 {[%emt 0:00:29]} Bh4 {[%emt 0:01:09]} 19. Bxf7+ {[%emt 0:01:04]} Nxf7 {[%emt 0:00:40]} 20. Rg4 {[%emt 0:00:31]} Bf6 {[%emt 0:00:16]} 21. Qf4 {[%emt 0:00:49]} Qd6 {[%emt 0:02:29]} 22. Qc4 {[%emt 0:00:45]} b6 {[%emt 0:00:55]} 23. Re4 {[%emt 0:00:42]} Rxe4 {[%emt 0:02:41]} 24. Qxe4 {[%emt 0:00:08]} Rd8 {[%emt 0:00:33]} 25. Re1 {[%emt 0:00:16]} Qe5 {[%emt 0:00:37]} 26. Re3 {[%emt 0:01:50]} Qxe4 {[%emt 0:00:06]} 27. Rxe4 {[%emt 0:00:06]} g6 {[%emt 0:00:43]} 28. Rf4 {[%emt 0:00:18]} Kg7 {[%emt 0:00:10]} 29. Rf3 {[%emt 0:00:23]} Ne5 {[%emt 0:00:05]} 30. Rf4 {[%emt 0:00:38]} Nxd3 {[%emt 0:00:15]} 31. Ra4 {[%emt 0:00:13]} a5 {[%emt 0:00:25]} 32. Ra3 {[%emt 0:00:44]} Nxb2 {[%emt 0:00:33]} 33. Rb3 {[%emt 0:00:03]} Rd1+ {[%emt 0:00:14]} 34. Kh2 {[%emt 0:00:10]} Be5+ {[%emt 0:00:18]} 35. g3 {[%emt 0:00:10]} Nc4 {[%emt 0:00:13]} 36. h4 {[%emt 0:00:44]} Rd2 {[%emt 0:00:12]} 37. Kh3 {[%emt 0:00:19]} Rb2 {[%emt 0:00:23]} 38. Rxb2 {[%emt 0:00:14]} Nxb2 {[%emt 0:00:04]} 39. Kg4 {[%emt 0:00:14]} Bxc3 {[%emt 0:00:06]} 40. f4 {[%emt 0:00:13]} Be1 {[%emt 0:00:22]} 41. Kf3 {[%emt 0:00:36]} c4 {[%emt 0:00:09]} 42. Kg2 {[%emt 0:00:39]} c3 {[%emt 0:00:05]} 43. Kh3 {[%emt 0:00:17]} c2 {[%emt 0:00:05]} 44. g4 {[%emt 0:00:06]} c1=Q {[%emt 0:00:09]} 45. h5 {[%emt 0:00:10]} Qe3+ {[%emt 0:00:12]} 46. Kh2 {[%emt 0:00:17]} Qg3+ {[%emt 0:00:15]} 47. Kh1 {[%emt 0:00:22]} Bf2 {[%emt 0:00:14]} 48. h6+ {[%emt 0:00:13]} Kg8 {[%emt 0:00:05]} 49. g5 {[%emt 0:00:16]} Qg1# {[%emt 0:00:09]} 0-1

[Event "LJ Slovak Open 2022"]
[Site "Liptovsky Jan"]
[Date "2022.06.25"]
[Round "4.50"]
[White "Bilik, Matej"]
[Black "Stricova Julia Nela"]
[Result "1-0"]
[ECO "C42"]
[WhiteElo "1553"]
[BlackElo "1149"]
[Annotator "NA RC"]
[PlyCount "105"]
[EventDate "2022.06.23"]
[EventType "swiss"]
[EventCountry "SVK"]
[SourceTitle "playchess.com"]
[Source "ChessBase"]
[SourceQuality "1"]
[TimeControl "3600+30"]

1. e4 {[%emt 0:00:05]} e5 {[%emt 0:07:32]} 2. Nf3 {[%emt 0:00:09]} Nf6 {[%emt 0:00:12]} 3. d3 {[%emt 0:01:37]} h6 {[%emt 0:00:25]} 4. Nxe5 {[%emt 0:01:13]} d6 {[%emt 0:01:00]} 5. Nf3 {[%emt 0:00:17]} g6 {[%emt 0:00:57]} 6. Be3 {[%emt 0:01:28]} Bg7 {[%emt 0:01:11]} 7. Nc3 {[%emt 0:01:04]} O-O {[%emt 0:00:56]} 8. h3 {[%emt 0:00:29]} Be6 {[%emt 0:01:33]} 9. Qd2 {[%emt 0:01:32]} Kh7 {[%emt 0:01:05]} 10. Be2 {[%emt 0:02:14]} Nc6 {[%emt 0:00:54]} 11. O-O-O {[%emt 0:03:29]} Ne5 {[%emt 0:01:52]} 12. Nxe5 {[%emt 0:03:34]} dxe5 {[%emt 0:00:19]} 13. Rdg1 {[%emt 0:01:27]} Qd6 {[%emt 0:01:59]} 14. f3 {[%emt 0:15:52]} Qa6 {[%emt 0:00:56]} 15. d4 {[%emt 0:01:07]} Qa5 {[%emt 0:01:04]} 16. d5 {[%emt 0:00:46]} Bd7 {[%emt 0:01:32]} 17. a3 {[%emt 0:03:26]} c6 {[%emt 0:00:58]} 18. dxc6 {[%emt 0:01:15]} Bxc6 {[%emt 0:00:15]} 19. Na2 {[%emt 0:00:49]} Qxd2+ {[%emt 0:00:24]} 20. Bxd2 {[%emt 0:00:09]} Rac8 {[%emt 0:01:18]} 21. Nb4 {[%emt 0:00:54]} Ba4 {[%emt 0:00:27]} 22. Bc3 {[%emt 0:04:08]} Rfe8 {[%emt 0:01:30]} 23. Rd1 {[%emt 0:01:49]} Nd7 {[%emt 0:01:32]} 24. Nd5 {[%emt 0:03:25]} Red8 {[%emt 0:01:04]} 25. b3 {[%emt 0:03:24]} Bc6 {[%emt 0:00:45]} 26. Ne7 {[%emt 0:01:14]} Rc7 {[%emt 0:00:37]} 27. Nxc6 {[%emt 0:00:19]} Rxc6 {[%emt 0:00:11]} 28. Kb2 {[%emt 0:01:13]} Rc7 {[%emt 0:00:38]} 29. Bb5 {[%emt 0:02:35]} a6 {[%emt 0:00:45]} 30. Bc4 {[%emt 0:01:09]} b5 {[%emt 0:00:19]} 31. Ba5 {[%emt 0:01:06]} Rcc8 {[%emt 0:00:47]} 32. Bxd8 {[%emt 0:00:14]} Rxd8 {[%emt 0:00:08]} 33. Bxf7 {[%emt 0:00:16]} Bf8 {[%emt 0:01:10]} 34. Be6 {[%emt 0:00:12]} Be7 {[%emt 0:00:47]} 35. Rxd7 {[%emt 0:00:11]} Rxd7 {[%emt 0:00:09]} 36. Bxd7 {[%emt 0:00:09]} g5 {[%emt 0:00:13]} 37. Rd1 {[%emt 0:00:15]} h5 {[%emt 0:00:15]} 38. Bc8 {[%emt 0:00:10]} a5 {[%emt 0:00:08]} 39. Rd7 {[%emt 0:00:07]} Kg6 {[%emt 0:00:13]} 40. Rxe7 {[%emt 0:00:08]} b4 {[%emt 0:00:13]} 41. axb4 {[%emt 0:00:19]} axb4 {[%emt 0:00:08]} 42. Rxe5 {[%emt 0:00:12]} Kf6 {[%emt 0:00:16]} 43. Rf5+ {[%emt 0:00:09]} Kg6 {[%emt 0:00:16]} 44. c3 {[%emt 0:00:13]} bxc3+ {[%emt 0:00:07]} 45. Kxc3 {[%emt 0:00:14]} g4 {[%emt 0:00:09]} 46. fxg4 {[%emt 0:00:12]} hxg4 {[%emt 0:00:08]} 47. hxg4 {[%emt 0:00:08]} Kh6 {[%emt 0:00:10]} 48. e5 {[%emt 0:00:14]} Kg6 {[%emt 0:00:10]} 49. e6 {[%emt 0:00:10]} Kg7 {[%emt 0:00:12]} 50. e7 {[%emt 0:00:07]} Kg6 {[%emt 0:00:10]} 51. e8=Q+ {[%emt 0:00:21]} Kg7 {[%emt 0:00:14]} 52. Qf7+ {[%emt 0:00:15]} Kh8 {[%emt 0:00:14]} 53. Rh5# {[%emt 0:00:11]} 1-0

[Event "LJ Slovak Open 2022"]
[Site "Liptovsky Jan"]
[Date "2022.06.25"]
[Round "4.51"]
[White "Prochazka Michal"]
[Black "Vastik, Tomas"]
[Result "1-0"]
[ECO "C50"]
[WhiteElo "1110"]
[BlackElo "1457"]
[Annotator "NA RC"]
[PlyCount "53"]
[EventDate "2022.06.23"]
[EventType "swiss"]
[EventCountry "SVK"]
[SourceTitle "playchess.com"]
[Source "ChessBase"]
[SourceQuality "1"]
[TimeControl "3600+30"]

1. e4 {[%emt 0:00:05]} e5 {[%emt 0:00:04]} 2. Nf3 {[%emt 0:00:05]} Nc6 {[%emt 0:00:10]} 3. Nc3 {[%emt 0:00:26]} Bc5 {[%emt 0:00:14]} 4. Bc4 {[%emt 0:04:16]} d6 {[%emt 0:00:29]} 5. h3 {[%emt 0:01:57]} h6 {[%emt 0:00:18]} 6. d3 {[%emt 0:00:30]} Nf6 {[%emt 0:00:15]} 7. Be3 {[%emt 0:00:31]} Bb4 {[%emt 0:00:37]} 8. O-O {[%emt 0:01:12]} O-O {[%emt 0:00:25]} 9. Nd5 {[%emt 0:04:32]} Nxd5 {[%emt 0:02:30]} 10. exd5 {[%emt 0:00:34]} Ne7 {[%emt 0:02:50]} 11. c3 {[%emt 0:02:56]} Ba5 {[%emt 0:00:17]} 12. d4 {[%emt 0:02:13]} Ng6 {[%emt 0:02:04]} 13. dxe5 {[%emt 0:03:19]} dxe5 {[%emt 0:03:32]} 14. Re1 {[%emt 0:01:14]} Re8 {[%emt 0:02:01]} 15. Qb3 {[%emt 0:05:16]} Qd6 {[%emt 0:02:35]} 16. Qa4 {[%emt 0:01:18]} c6 {[%emt 0:03:28]} 17. Qxa5 {[%emt 0:02:07]} b5 {[%emt 0:01:38]} 18. Bb3 {[%emt 0:01:09]} Qf6 {[%emt 0:01:03]} 19. dxc6 {[%emt 0:04:15]} Bxh3 {[%emt 0:00:47]} 20. Bd5 {[%emt 0:07:46]} Rad8 {[%emt 0:01:10]} 21. Rad1 {[%emt 0:02:18]} e4 {[%emt 0:00:28]} 22. Nh2 {[%emt 0:04:50]} Bxg2 {[%emt 0:03:07]} 23. Kxg2 {[%emt 0:01:07]} Nh4+ {[%emt 0:00:32]} 24. Kf1 {[%emt 0:02:00]} Nf3 {[%emt 0:01:39]} 25. Nxf3 {[%emt 0:00:50]} exf3 {[%emt 0:00:13]} 26. Bxf3 {[%emt 0:01:52]} Qh4 {[%emt 0:02:02]} 27. Rxd8 {[%emt 0:01:18]} 1-0

[Event "LJ Slovak Open 2022"]
[Site "Liptovsky Jan"]
[Date "2022.06.25"]
[Round "4.52"]
[White "Veres Alex"]
[Black "Lacko, Stanislav"]
[Result "0-1"]
[ECO "C00"]
[WhiteElo "1000"]
[BlackElo "1462"]
[Annotator "NA RC"]
[PlyCount "81"]
[EventDate "2022.06.23"]
[EventType "swiss"]
[EventCountry "SVK"]
[SourceTitle "playchess.com"]
[Source "ChessBase"]
[SourceQuality "1"]
[TimeControl "3600+30"]

1. e4 {[%emt 0:00:05]} e6 {[%emt 0:00:09]} 2. Nc3 {[%emt 0:00:18]} d5 {[%emt 0:00:12]} 3. d3 {[%emt 0:00:31]} d4 {[%emt 0:02:27]} 4. Nce2 {[%emt 0:00:44]} c5 {[%emt 0:00:39]} 5. c3 {[%emt 0:00:37]} e5 {[%emt 0:02:33]} 6. f4 {[%emt 0:00:30]} Nc6 {[%emt 0:00:30]} 7. Nf3 {[%emt 0:00:17]} Bd6 {[%emt 0:01:13]} 8. fxe5 {[%emt 0:00:19]} Nxe5 {[%emt 0:00:34]} 9. Nxe5 {[%emt 0:00:12]} Bxe5 {[%emt 0:00:19]} 10. Bf4 {[%emt 0:00:32]} Bxf4 {[%emt 0:04:02]} 11. Nxf4 {[%emt 0:00:10]} Nf6 {[%emt 0:00:38]} 12. Be2 {[%emt 0:03:10]} O-O {[%emt 0:01:00]} 13. Nh5 {[%emt 0:01:49]} Be6 {[%emt 0:03:30]} 14. O-O {[%emt 0:01:17]} Nxh5 {[%emt 0:01:19]} 15. Bxh5 {[%emt 0:00:23]} Qd7 {[%emt 0:06:12]} 16. Qf3 {[%emt 0:05:52]} g6 {[%emt 0:01:32]} 17. Qg3 {[%emt 0:00:37]} Rad8 {[%emt 0:07:14]} 18. Rad1 {[%emt 0:01:14]} a6 {[%emt 0:05:21]} 19. c4 {[%emt 0:03:16]} b5 {[%emt 0:01:35]} 20. b3 {[%emt 0:00:22]} bxc4 {[%emt 0:00:53]} 21. bxc4 {[%emt 0:00:14]} Rb8 {[%emt 0:01:37]} 22. Rb1 {[%emt 0:00:23]} Rb7 {[%emt 0:02:18]} 23. Rxb7 {[%emt 0:00:28]} Qxb7 {[%emt 0:00:11]} 24. Bg4 {[%emt 0:00:53]} Bxg4 {[%emt 0:01:12]} 25. Qxg4 {[%emt 0:00:19]} Qb2 {[%emt 0:00:50]} 26. h3 {[%emt 0:00:19]} Qxa2 {[%emt 0:00:36]} 27. Qg5 {[%emt 0:00:20]} Qa3 {[%emt 0:01:43]} 28. Qh6 {[%emt 0:00:14]} Qxd3 {[%emt 0:01:05]} 29. Rf4 {[%emt 0:00:33]} a5 {[%emt 0:02:50]} 30. Kh2 {[%emt 0:00:32]} Qe3 {[%emt 0:00:57]} 31. Rh4 {[%emt 0:01:10]} Qxh6 {[%emt 0:00:17]} 32. Rxh6 {[%emt 0:00:13]} a4 {[%emt 0:00:22]} 33. g4 {[%emt 0:00:20]} a3 {[%emt 0:00:19]} 34. g5 {[%emt 0:00:08]} a2 {[%emt 0:00:34]} 35. Rxg6+ {[%emt 0:00:07]} fxg6 {[%emt 0:00:31]} 36. e5 {[%emt 0:00:15]} a1=Q {[%emt 0:00:12]} 37. e6 {[%emt 0:00:07]} Re8 {[%emt 0:01:45]} 38. h4 {[%emt 0:00:31]} Rxe6 {[%emt 0:00:30]} 39. h5 {[%emt 0:00:11]} Qa3 {[%emt 0:00:52]} 40. h6 {[%emt 0:00:11]} Re2+ {[%emt 0:00:30]} 41. Kg1 {[%emt 0:00:14]} 0-1

[Event "LJ Slovak Open 2022"]
[Site "Liptovsky Jan"]
[Date "2022.06.25"]
[Round "4.53"]
[White "Pisarcik, Richard"]
[Black "Pavlov Jakub"]
[Result "1-0"]
[ECO "D11"]
[WhiteElo "1343"]
[BlackElo "1000"]
[Annotator "NA RC"]
[PlyCount "123"]
[EventDate "2022.06.23"]
[EventType "swiss"]
[EventCountry "SVK"]
[SourceTitle "playchess.com"]
[Source "ChessBase"]
[SourceQuality "1"]
[TimeControl "3600+30"]

1. d4 {[%emt 0:00:09]} d5 {[%emt 0:00:10]} 2. c4 {[%emt 0:00:19]} c6 {[%emt 0:00:15]} 3. Nc3 {[%emt 0:00:25]} Nf6 {[%emt 0:00:30]} 4. Nf3 {[%emt 0:00:38]} Bg4 {[%emt 0:00:20]} 5. e3 {[%emt 0:00:38]} e6 {[%emt 0:00:34]} 6. Qb3 {[%emt 0:01:25]} b6 {[%emt 0:01:53]} 7. Be2 {[%emt 0:02:55]} Nbd7 {[%emt 0:01:47]} 8. Ne5 {[%emt 0:02:20]} Nxe5 {[%emt 0:00:20]} 9. dxe5 {[%emt 0:00:09]} Bxe2 {[%emt 0:00:29]} 10. Nxe2 {[%emt 0:01:25]} Nd7 {[%emt 0:00:36]} 11. f4 {[%emt 0:01:00]} a5 {[%emt 0:01:56]} 12. a3 {[%emt 0:02:23]} Nc5 {[%emt 0:00:44]} 13. Qc2 {[%emt 0:00:43]} dxc4 {[%emt 0:02:47]} 14. Qxc4 {[%emt 0:02:45]} Nd3+ {[%emt 0:00:11]} 15. Kf1 {[%emt 0:00:10]} Bc5 {[%emt 0:00:13]} 16. Nd4 {[%emt 0:00:48]} Nxc1 {[%emt 0:03:01]} 17. Rxc1 {[%emt 0:00:09]} Qd5 {[%emt 0:00:55]} 18. Qxd5 {[%emt 0:01:19]} cxd5 {[%emt 0:00:11]} 19. Nb5 {[%emt 0:00:27]} O-O {[%emt 0:00:38]} 20. Ke2 {[%emt 0:00:36]} h5 {[%emt 0:03:28]} 21. h3 {[%emt 0:01:55]} g6 {[%emt 0:00:34]} 22. g4 {[%emt 0:00:18]} hxg4 {[%emt 0:00:26]} 23. hxg4 {[%emt 0:00:05]} Kg7 {[%emt 0:00:19]} 24. f5 {[%emt 0:00:58]} exf5 {[%emt 0:02:49]} 25. gxf5 {[%emt 0:17:08]} Rh8 {[%emt 0:00:49]} 26. fxg6 {[%emt 0:01:18]} fxg6 {[%emt 0:00:21]} 27. Nc7 {[%emt 0:00:13]} Rxh1 {[%emt 0:02:15]} 28. Rxh1 {[%emt 0:01:12]} Rc8 {[%emt 0:04:29]} 29. Nxd5 {[%emt 0:00:34]} Re8 {[%emt 0:00:27]} 30. Kd3 {[%emt 0:02:56]} Rxe5 {[%emt 0:00:33]} 31. e4 {[%emt 0:00:20]} Rh5 {[%emt 0:01:50]} 32. Re1 {[%emt 0:02:43]} g5 {[%emt 0:03:43]} 33. b4 {[%emt 0:00:42]} Bf8 {[%emt 0:05:24]} 34. Rg1 {[%emt 0:01:09]} Bd6 {[%emt 0:01:14]} 35. Kc4 {[%emt 0:02:23]} axb4 {[%emt 0:03:26]} 36. axb4 {[%emt 0:00:14]} Rh4 {[%emt 0:00:12]} 37. Kd4 {[%emt 0:03:17]} Kh6 {[%emt 0:01:04]} 38. Ne3 {[%emt 0:00:41]} Bxb4 {[%emt 0:01:09]} 39. Nf5+ {[%emt 0:01:44]} Kh5 {[%emt 0:00:12]} 40. Kd5 {[%emt 0:01:39]} Rh2 {[%emt 0:02:31]} 41. e5 {[%emt 0:03:33]} Rd2+ {[%emt 0:02:14]} 42. Ke6 {[%emt 0:00:28]} Kg6 {[%emt 0:01:03]} 43. Nh4+ {[%emt 0:00:48]} Kh5 {[%emt 0:00:12]} 44. Nf3 {[%emt 0:00:54]} Rd3 {[%emt 0:03:11]} 45. Nxg5 {[%emt 0:00:32]} Bc5 {[%emt 0:02:23]} 46. Rg2 {[%emt 0:00:14]} Rd8 {[%emt 0:01:13]} 47. Nf7 {[%emt 0:01:08]} Rf8 {[%emt 0:02:18]} 48. Kf6 {[%emt 0:00:26]} Bd4 {[%emt 0:01:13]} 49. Ke7 {[%emt 0:00:43]} Rxf7+ {[%emt 0:02:55]} 50. Kxf7 {[%emt 0:00:19]} Bxe5 {[%emt 0:00:12]} 51. Ke6 {[%emt 0:00:04]} Bd4 {[%emt 0:00:24]} 52. Kd5 {[%emt 0:00:26]} Bc5 {[%emt 0:00:11]} 53. Ke4 {[%emt 0:00:43]} Kh4 {[%emt 0:00:44]} 54. Rg6 {[%emt 0:00:33]} Kh3 {[%emt 0:00:24]} 55. Kf4 {[%emt 0:00:21]} Kh2 {[%emt 0:00:19]} 56. Kf3 {[%emt 0:00:09]} Bd4 {[%emt 0:00:38]} 57. Rh6+ {[%emt 0:00:39]} Kg1 {[%emt 0:00:13]} 58. Rg6+ {[%emt 0:00:17]} Kf1 {[%emt 0:00:35]} 59. Rd6 {[%emt 0:00:13]} Bf2 {[%emt 0:01:37]} 60. Rd1+ {[%emt 0:00:07]} Be1 {[%emt 0:00:15]} 61. Rc1 {[%emt 0:00:12]} b5 {[%emt 0:00:32]} 62. Rd1 {[%emt 0:00:22]} 1-0

[Event "LJ Slovak Open 2022"]
[Site "Liptovsky Jan"]
[Date "2022.06.25"]
[Round "4.54"]
[White "Koren, Juraj"]
[Black "Bodnar, Frantisek"]
[Result "1-0"]
[ECO "C34"]
[WhiteElo "1506"]
[BlackElo "1379"]
[Annotator "NA RC"]
[PlyCount "105"]
[EventDate "2022.06.23"]
[EventType "swiss"]
[EventCountry "SVK"]
[SourceTitle "playchess.com"]
[Source "ChessBase"]
[SourceQuality "1"]
[TimeControl "3600+30"]

1. e4 {[%emt 0:00:06]} e5 {[%emt 0:01:33]} 2. f4 {[%emt 0:00:30]} exf4 {[%emt 0:00:30]} 3. Nf3 {[%emt 0:00:02]} Nc6 {[%emt 0:00:58]} 4. d4 {[%emt 0:00:14]} d5 {[%emt 0:01:48]} 5. e5 {[%emt 0:00:22]} Bg4 {[%emt 0:00:18]} 6. Bxf4 {[%emt 0:00:25]} Bxf3 {[%emt 0:01:40]} 7. Qxf3 {[%emt 0:03:51]} Nxd4 {[%emt 0:00:20]} 8. Qd3 {[%emt 0:01:02]} Ne6 {[%emt 0:03:45]} 9. Bg3 {[%emt 0:00:58]} Be7 {[%emt 0:06:31]} 10. Nd2 {[%emt 0:05:23]} Qd7 {[%emt 0:02:59]} 11. O-O-O {[%emt 0:02:15]} a6 {[%emt 0:01:29]} 12. Nb3 {[%emt 0:00:45]} c5 {[%emt 0:06:51]} 13. Qf3 {[%emt 0:00:31]} Bg5+ {[%emt 0:00:30]} 14. Kb1 {[%emt 0:00:23]} Ne7 {[%emt 0:00:02]} 15. Bc4 {[%emt 0:01:26]} Rd8 {[%emt 0:01:54]} 16. Rhe1 {[%emt 0:09:43]} b5 {[%emt 0:01:15]} 17. Bf1 {[%emt 0:00:36]} O-O {[%emt 0:00:23]} 18. h4 {[%emt 0:01:04]} Bh6 {[%emt 0:00:01]} 19. Bh2 {[%emt 0:00:21]} g6 {[%emt 0:00:54]} 20. g4 {[%emt 0:00:21]} Qc6 {[%emt 0:00:23]} 21. Bg2 {[%emt 0:00:44]} Bg7 {[%emt 0:01:20]} 22. Bg1 {[%emt 0:06:20]} Qc7 {[%emt 0:00:39]} 23. Bh2 {[%emt 0:00:38]} a5 {[%emt 0:00:22]} 24. Qf1 {[%emt 0:03:01]} a4 {[%emt 0:04:11]} 25. Nc1 {[%emt 0:00:36]} c4 {[%emt 0:00:20]} 26. c3 {[%emt 0:01:17]} b4 {[%emt 0:02:59]} 27. Ne2 {[%emt 0:03:00]} bxc3 {[%emt 0:07:43]} 28. Nxc3 {[%emt 0:00:09]} d4 {[%emt 0:00:22]} 29. Nb5 {[%emt 0:00:27]} Qc5 {[%emt 0:00:31]} 30. Nd6 {[%emt 0:00:30]} a3 {[%emt 0:01:57]} 31. Nb7 {[%emt 0:01:34]} Qb5 {[%emt 0:00:51]} 32. b3 {[%emt 0:01:00]} Rb8 {[%emt 0:00:11]} 33. Nd6 {[%emt 0:02:14]} Qb4 {[%emt 0:00:27]} 34. Qxc4 {[%emt 0:01:29]} Qxc4 {[%emt 0:01:16]} 35. Nxc4 {[%emt 0:00:06]} Rfc8 {[%emt 0:00:11]} 36. Ka1 {[%emt 0:00:31]} Nc5 {[%emt 0:05:02]} 37. Rxd4 {[%emt 0:00:22]} Rxb3 {[%emt 0:01:48]} 38. Red1 {[%emt 0:05:29]} Ne6 {[%emt 0:02:59]} 39. axb3 {[%emt 0:01:20]} Nxd4 {[%emt 0:00:26]} 40. Rxd4 {[%emt 0:00:11]} Nc6 {[%emt 0:00:18]} 41. Bxc6 {[%emt 0:00:18]} Rxc6 {[%emt 0:00:02]} 42. Rd8+ {[%emt 0:00:33]} Bf8 {[%emt 0:00:03]} 43. Bf4 {[%emt 0:01:32]} Kg7 {[%emt 0:00:33]} 44. Kb1 {[%emt 0:00:59]} Be7 {[%emt 0:00:28]} 45. Rd7 {[%emt 0:01:51]} Bc5 {[%emt 0:00:11]} 46. h5 {[%emt 0:04:47]} h6 {[%emt 0:00:22]} 47. hxg6 {[%emt 0:00:36]} Kxg6 {[%emt 0:01:41]} 48. Rd5 {[%emt 0:00:31]} Bb4 {[%emt 0:00:30]} 49. Be3 {[%emt 0:01:14]} Bc3 {[%emt 0:00:10]} 50. Nxa3 {[%emt 0:01:09]} Ra6 {[%emt 0:00:58]} 51. Nc4 {[%emt 0:03:45]} Re6 {[%emt 0:02:56]} 52. Kc2 {[%emt 0:00:31]} Ba1 {[%emt 0:00:13]} 53. Ra5 {[%emt 0:01:01]} 1-0

[Event "LJ Slovak Open 2022"]
[Site "Liptovsky Jan"]
[Date "2022.06.25"]
[Round "4.55"]
[White "Papay Aurel"]
[Black "Pechociakova, Petra"]
[Result "0-1"]
[ECO "C62"]
[WhiteElo "1294"]
[BlackElo "1160"]
[Annotator "NA RC"]
[PlyCount "77"]
[EventDate "2022.06.23"]
[EventType "swiss"]
[EventCountry "SVK"]
[SourceTitle "playchess.com"]
[Source "ChessBase"]
[SourceQuality "1"]
[TimeControl "3600+30"]

1. e4 {[%emt 0:00:08]} e5 {[%emt 0:00:05]} 2. Nf3 {[%emt 0:00:11]} Nc6 {[%emt 0:00:09]} 3. Bb5 {[%emt 0:00:22]} d6 {[%emt 0:00:56]} 4. d4 {[%emt 0:01:18]} Bd7 {[%emt 0:01:57]} 5. d5 {[%emt 0:10:15]} Nce7 {[%emt 0:02:04]} 6. Bxd7+ {[%emt 0:09:15]} Qxd7 {[%emt 0:03:37]} 7. Nc3 {[%emt 0:01:20]} Nf6 {[%emt 0:01:32]} 8. Be3 {[%emt 0:01:09]} a6 {[%emt 0:04:08]} 9. O-O {[%emt 0:01:03]} Ng6 {[%emt 0:04:46]} 10. Nd2 {[%emt 0:07:24]} Be7 {[%emt 0:01:46]} 11. f4 {[%emt 0:01:27]} Ng4 {[%emt 0:02:50]} 12. Qf3 {[%emt 0:02:47]} Nxe3 {[%emt 0:01:30]} 13. Qxe3 {[%emt 0:00:28]} exf4 {[%emt 0:01:12]} 14. Qf2 {[%emt 0:01:18]} Bh4 {[%emt 0:01:39]} 15. Qf3 {[%emt 0:01:25]} O-O-O {[%emt 0:03:29]} 16. Ne2 {[%emt 0:00:32]} f5 {[%emt 0:02:25]} 17. Qh5 {[%emt 0:05:01]} fxe4 {[%emt 0:01:40]} 18. Nxe4 {[%emt 0:01:00]} Kb8 {[%emt 0:01:35]} 19. Nxf4 {[%emt 0:02:06]} Qa4 {[%emt 0:00:46]} 20. Nxg6 {[%emt 0:01:09]} hxg6 {[%emt 0:00:13]} 21. Qe2 {[%emt 0:06:57]} Qd4+ {[%emt 0:01:34]} 22. Kh1 {[%emt 0:02:50]} Rde8 {[%emt 0:01:03]} 23. Rf4 {[%emt 0:01:56]} Qxd5 {[%emt 0:01:06]} 24. c4 {[%emt 0:02:45]} Qg8 {[%emt 0:01:26]} 25. Qd3 {[%emt 0:01:56]} g5 {[%emt 0:01:56]} 26. Rf3 {[%emt 0:01:49]} g4 {[%emt 0:00:56]} 27. Re3 {[%emt 0:00:33]} Qf7 {[%emt 0:01:51]} 28. b3 {[%emt 0:02:16]} Qh5 {[%emt 0:00:14]} 29. h3 {[%emt 0:02:19]} gxh3 {[%emt 0:01:14]} 30. Rxh3 {[%emt 0:00:26]} g5 {[%emt 0:00:53]} 31. Nf6 {[%emt 0:00:44]} Qe2 {[%emt 0:00:44]} 32. Qc3 {[%emt 0:00:52]} Reg8 {[%emt 0:01:49]} 33. Nxg8 {[%emt 0:01:16]} Rxg8 {[%emt 0:00:06]} 34. Re3 {[%emt 0:00:23]} Qf2 {[%emt 0:00:40]} 35. Rf3 {[%emt 0:00:19]} Qc5 {[%emt 0:00:47]} 36. Raf1 {[%emt 0:00:46]} Rg6 {[%emt 0:00:25]} 37. Rf5 {[%emt 0:00:41]} Qa3 {[%emt 0:00:38]} 38. Qd4 {[%emt 0:00:23]} Rh6 {[%emt 0:00:37]} 39. Rf8# {[%emt 0:00:09]} 0-1